bitfinex/quotes_SOLUSD_20260203
["timestamp","ask_amount","ask_price","bid_price","bid_amount"]
[1770128252938,7.72285977,102.99,102.96,3.04956993]
[1770128253155,19.9691639,103.0,102.96,3.04956993]
[1770128253553,7.72285977,102.98,102.94,3.04956993]
[1770128253751,7.72285977,102.96,102.92,12.76539148]
[1770128254165,7.72285977,102.96,102.93,3.04956993]
[1770128254458,7.72285977,102.96,102.91,7.72285977]
[1770128254459,17.43661844,102.95,102.91,12.7664934]
[1770128254667,10.12831732,102.97,102.93,3.04956993]
[1770128254846,9.71091091,102.98,102.95,3.04956993]
[1770128255053,12.1154938,102.99,102.95,3.04956993]
[1770128255258,19.83835357,102.99,102.95,3.04956993]
[1770128255768,9.71003625,102.99,102.95,10.7724297]
[1770128255954,17.43213029,103.0,102.96,3.04956993]
[1770128256157,17.43213029,103.0,102.96,10.7724297]
[1770128256158,9.70927052,103.0,102.96,10.7724297]
[1770128256358,9.71062342,102.98,102.95,10.7724297]
[1770128256551,9.71062342,102.98,102.95,3.04956993]
[1770128256552,17.43348319,102.98,102.95,3.04956993]
[1770128256751,17.43348319,102.98,102.93,3.04956993]
[1770128256752,12.126415,102.98,102.93,3.04956993]
[1770128257061,7.72285977,102.96,102.92,12.76539631]
[1770128257242,7.72285977,102.97,102.93,12.76475616]
[1770128257445,7.72285977,102.96,102.93,3.04956993]
[1770128257643,7.72285977,102.97,102.94,3.04956993]
[1770128258165,17.43348319,102.98,102.95,3.04956993]
[1770128258670,7.72285977,102.97,102.92,24.29003159]
[1770128258967,7.72285977,102.95,102.92,3.04956993]
[1770128260063,10.14874935,102.96,102.92,12.76565517]
[1770128260268,36.41803373,102.98,102.93,3.04956993]
[1770128260455,7.72285977,102.97,102.93,12.76483127]
[1770128260970,9.71062342,102.98,102.95,3.04956993]
[1770128261681,17.43348319,102.98,102.95,3.04956993]
[1770128261851,9.71062342,102.98,102.95,3.04956993]
[1770128262243,17.43348319,102.98,102.95,3.04956993]
[1770128262651,9.71017193,102.99,102.96,3.04956993]
[1770128262969,19.87744173,103.0,102.96,3.04956993]
[1770128263147,44.14928639,103.0,102.96,3.04956993]
[1770128263767,9.70918302,103.0,102.97,3.04956993]
[1770128263970,9.70783681,103.01,102.98,3.04956993]
[1770128264176,17.43007473,103.02,102.98,3.04956993]
[1770128264355,17.43007473,103.02,102.99,3.04956993]
[1770128264764,7.72285977,103.01,102.99,3.04956993]
[1770128264962,17.43093495,103.01,102.98,3.04956993]
[1770128266259,9.70807518,103.01,102.98,3.04956993]
[1770128266975,17.43015515,103.02,102.98,12.76010055]
[1770128267152,17.42929121,103.03,102.99,3.04956993]
[1770128267484,10.19141119,103.0,102.96,12.76159587]
[1770128267769,10.19141119,103.01,102.97,3.04956993]
[1770128267974,10.19141119,103.01,102.97,12.76099988]
[1770128268164,10.19141119,103.01,102.97,3.04956993]
[1770128268970,17.4324152,103.0,102.97,3.04956993]
[1770128269162,19.90543879,103.0,102.96,3.04956993]
[1770128270177,41.70425986,103.0,102.96,3.04956993]
[1770128270379,44.1903941,103.0,102.96,3.04956993]
[1770128270575,2.48613424,102.97,102.93,3.13185153]
[1770128270782,7.72285977,102.97,102.94,3.13185153]
[1770128270974,17.43455273,102.97,102.94,3.13185153]
[1770128272178,7.72285977,102.95,102.92,3.13185153]
[1770128272398,10.21748539,102.95,102.91,3.13185153]
[1770128272784,36.48940744,102.97,102.92,3.38091598]
[1770128272976,7.72285977,102.96,102.92,3.38091598]
[1770128273287,7.72285977,102.96,102.93,3.38091598]
[1770128273978,17.43455273,102.97,102.94,3.38091598]
[1770128274184,17.43392936,102.98,102.95,3.38091598]
[1770128274367,7.7780024,102.97,102.93,3.38091598]
[1770128275470,9.71211051,102.97,102.94,3.38091598]
[1770128275683,17.48862582,102.98,102.95,3.38091598]
[1770128278177,7.7780024,102.97,102.94,3.38091598]
[1770128278358,44.28413807,102.98,102.94,3.38091598]
[1770128278763,9.71062342,102.98,102.95,3.38091598]
[1770128279569,9.71062342,102.98,102.95,11.15891838]
[1770128279907,9.70968055,102.99,102.95,20.87234792]
[1770128280183,9.70968055,102.99,102.96,3.38091598]
[1770128280377,17.48768295,102.99,102.96,3.38091598]
[1770128280763,9.70779535,103.01,102.98,3.38091598]
[1770128280969,10.30850221,103.0,102.95,20.87234792]
[1770128281175,7.7780024,102.99,102.96,3.38091598]
[1770128281892,17.48734559,103.0,102.97,3.38091598]
[1770128282072,9.70934319,103.0,102.97,3.38091598]
[1770128282791,44.29716812,103.0,102.96,3.38091598]
[1770128283089,9.70934319,103.0,102.97,3.38091598]
[1770128283468,17.48632607,103.01,102.98,3.38091598]
[1770128283799,41.75581446,103.01,102.98,3.38091598]
[1770128284490,24.26584944,103.03,102.99,3.38091598]
[1770128284676,7.7780024,103.04,103.0,3.38091598]
[1770128284991,32.04042476,103.04,103.01,3.38091598]
[1770128285176,12.24931231,103.05,103.02,3.38091598]
[1770128285177,9.70402717,103.05,103.02,3.38091598]
[1770128285487,7.7780024,103.03,103.01,3.38091598]
[1770128285671,7.7780024,103.04,103.01,3.38091598]
[1770128286091,9.70591089,103.03,103.01,3.38091598]
[1770128286468,17.48391329,103.03,103.0,3.38091598]
[1770128286675,9.70591089,103.03,103.0,3.38091598]
[1770128286899,44.30111604,103.03,102.99,3.38091598]
[1770128287198,7.7780024,103.01,102.98,3.38091598]
[1770128287767,10.3339367,103.02,102.98,3.38091598]
[1770128287970,17.48391329,103.03,103.0,3.38091598]
[1770128288184,20.03984759,103.03,102.99,20.8685763]
[1770128289003,17.48391329,103.03,103.0,3.38091598]
[1770128292707,9.70591089,103.03,103.0,3.38091598]
[1770128292876,14.62615615,103.05,103.01,3.38091598]
[1770128293193,17.48297134,103.04,103.01,3.38091598]
[1770128293384,7.7780024,103.03,103.01,3.38091598]
[1770128294196,33.9673913,103.04,103.01,3.38091598]
[1770128294197,41.7453937,103.04,103.01,3.38091598]
[1770128294511,7.7780024,103.02,102.99,3.38091598]
[1770128294682,10.35739534,103.03,102.99,3.38091598]
[1770128295082,7.7780024,103.03,102.99,3.38091598]
[1770128295484,36.54678424,103.04,102.99,3.38091598]
[1770128295795,7.7780024,103.03,102.99,20.86857792]
[1770128296094,2.58259198,103.02,102.97,3.38091598]
[1770128296302,7.7780024,103.03,102.99,3.38091598]
[1770128296303,17.48391329,103.03,102.99,3.38091598]
[1770128296686,41.74869053,103.03,102.99,3.38091598]
[1770128296888,9.70591089,103.03,103.0,3.38091598]
[1770128299794,17.48391329,103.03,103.0,9.70868567]
[1770128300002,17.48345172,103.04,103.01,3.38091598]
[1770128300197,41.74587408,103.04,103.01,3.38091598]
[1770128301002,7.7780024,103.03,103.0,3.29298894]
[1770128301203,7.7780024,103.02,103.0,3.29298894]
[1770128302606,17.48513971,103.02,103.0,3.29298894]
[1770128303400,17.48430694,103.03,103.0,3.29298894]
[1770128303607,9.70630454,103.03,103.0,3.29298894]
[1770128303900,9.70551345,103.04,103.01,3.29298894]
[1770128304106,9.704597,103.05,103.02,3.29298894]
[1770128304906,17.4825994,103.05,103.02,3.29298894]
[1770128305399,7.7780024,103.04,103.0,3.29298894]
[1770128305605,36.58011177,103.05,103.0,3.29298894]
[1770128305606,10.39344925,103.03,103.0,3.29298894]
[1770128306004,7.7780024,103.03,103.0,3.29298894]
[1770128307410,17.48424947,103.03,103.0,3.29298894]
[1770128307707,12.32723179,103.03,102.99,3.29298894]
[1770128307894,7.7780024,103.02,102.99,3.29298894]
[1770128309004,17.48535421,103.02,102.99,3.29298894]
[1770128309406,41.7524868,103.02,102.99,3.29298894]
[1770128309932,44.3788829,103.02,102.99,3.29298894]
[1770128310705,33.9744844,103.02,102.99,3.29298894]
[1770128310906,9.70735181,103.02,103.0,3.29298894]
[1770128311091,9.70630218,103.03,103.0,3.29298894]
[1770128311900,9.70630218,103.03,103.01,3.29298894]
[1770128313310,65.77000991,103.07,103.03,3.29298894]
[1770128313311,34.66956629,103.07,103.03,3.29298894]
[1770128313610,44.37224745,103.07,103.03,3.29298894]
[1770128314390,7.7780024,103.06,103.03,3.29298894]
[1770128314810,44.37224745,103.07,103.03,3.29298894]
[1770128316013,10.41990231,103.05,103.01,13.00018232]
[1770128316318,7.7780024,103.05,103.02,3.29298894]
[1770128316891,7.7780024,103.04,103.01,3.29298894]
[1770128317395,9.70591089,103.03,103.01,3.29298894]
[1770128320604,17.48255809,103.05,103.02,3.29298894]
[1770128320820,9.70455569,103.05,103.02,3.29298894]
[1770128321514,20.13892357,103.05,103.02,3.29298894]
[1770128321717,36.62098909,103.05,103.01,3.29298894]
[1770128321913,7.7780024,103.04,103.01,3.29298894]
[1770128322226,44.39899149,103.05,103.01,3.29298894]
[1770128322922,10.43668282,103.04,103.01,3.29298894]
[1770128323122,7.7780024,103.03,103.01,3.29298894]
[1770128323314,10.43668282,103.04,103.01,3.29298894]
[1770128323625,20.14243371,103.04,103.01,3.29298894]
[1770128324225,7.7780024,103.03,103.0,3.29298894]
[1770128324609,10.44123323,103.03,102.99,3.29298894]
[1770128324809,7.7780024,103.02,102.99,3.29298894]
[1770128325322,2.66323083,103.03,102.99,3.29298894]
[1770128325626,17.48485543,103.02,102.99,3.29298894]
[1770128326398,9.70685303,103.02,102.99,13.00262081]
[1770128326810,9.70685303,103.02,102.99,3.29298894]
[1770128327112,9.70685303,103.02,103.0,3.29298894]
[1770128327624,9.70641051,103.03,103.0,3.29298894]
[1770128327834,9.70526628,103.04,103.01,3.29298894]
[1770128328018,44.41555337,103.04,103.01,3.29298894]
[1770128328326,36.63755097,103.04,103.01,3.29298894]
[1770128328505,17.48254869,103.05,103.02,3.29298894]
[1770128328703,9.70454629,103.05,103.02,3.29298894]
[1770128329028,12.37548796,103.06,103.03,3.29298894]
[1770128329227,9.70346572,103.06,103.03,11.07099134]
[1770128330016,9.70346572,103.06,103.03,3.29298894]
[1770128330215,9.70346572,103.06,103.04,3.29298894]
[1770128331014,10.45635667,103.05,103.01,3.1605814]
[1770128331325,7.7780024,103.04,103.01,3.1605814]
[1770128332113,17.483839,103.04,103.01,3.1605814]
[1770128332309,20.16425565,103.04,103.01,3.1605814]
[1770128332614,10.46247301,103.03,102.99,3.19135249]
[1770128332824,10.46247301,103.01,102.98,3.19135249]
[1770128333134,7.7780024,103.0,102.97,3.19135249]
[1770128334435,9.70924427,103.0,102.97,10.96935489]
[1770128334642,9.70924427,103.0,102.97,3.19135249]
[1770128335237,2.68843197,103.06,103.0,3.19135249]
[1770128335529,77.80841436,103.09,103.0,3.19135249]
[1770128335530,7.7780024,103.03,103.0,3.19135249]
[1770128336121,10.61054257,103.02,102.98,3.19135249]
[1770128336333,20.17592235,103.02,102.98,3.19135249]
[1770128336636,11.00308505,102.99,102.95,9.71293165]
[1770128336934,11.00308505,103.01,102.96,17.48348912]
[1770128337316,11.00308505,103.01,102.97,7.771132]
[1770128337728,11.00308505,103.01,102.96,9.71235712]
[1770128337928,11.00308505,103.01,102.96,7.771132]
[1770128338321,9.70873786,103.0,102.96,7.771132]
[1770128338521,9.70873786,103.0,102.97,3.19135249]
[1770128339440,7.771132,102.98,102.95,3.19135249]
[1770128340127,11.00308505,102.99,102.95,3.19135249]
[1770128340432,44.98366757,103.0,102.96,3.19135249]
[1770128340637,7.771132,102.99,102.96,3.19135249]
[1770128340823,9.70873786,103.0,102.97,3.19135249]
[1770128341134,12.94017472,103.01,102.98,3.19135249]
[1770128341325,7.771132,103.0,102.97,3.19135249]
[1770128341526,44.98079511,103.01,102.97,3.19135249]
[1770128341842,44.98079511,103.01,102.97,10.96248449]
[1770128342337,3.23195305,103.0,102.93,8.55221437]
[1770128342538,3.23195305,102.97,102.93,3.19135249]
[1770128342723,11.00308505,102.98,102.94,3.19135249]
[1770128343034,3.23195305,102.98,102.95,3.19135249]
[1770128343244,3.23195305,102.99,102.95,3.19135249]
[1770128343417,11.00308505,102.99,102.95,3.19135249]
[1770128343615,3.23195305,102.99,102.96,3.19135249]
[1770128345034,12.94239575,102.99,102.96,3.19135249]
[1770128345343,20.71352775,102.99,102.96,3.19135249]
[1770128346055,3.23195305,102.98,102.93,3.19135249]
[1770128346235,7.771132,102.96,102.93,3.19135249]
[1770128346734,11.00308505,102.97,102.93,10.96248449]
[1770128347041,11.00308505,102.97,102.93,3.19135249]
[1770128347540,3.23195305,102.97,102.93,3.19135249]
[1770128347741,11.00308505,102.97,102.93,3.19135249]
[1770128348040,12.94482404,102.96,102.92,12.90763698]
[1770128348247,20.71595604,102.96,102.92,12.90763698]
[1770128349243,20.71595604,102.96,102.92,3.19135249]
[1770128350826,20.71595604,102.96,102.92,12.9074047]
[1770128351134,20.71595604,102.96,102.92,3.19135249]
[1770128351636,3.23195305,102.96,102.93,3.19135249]
[1770128351847,20.71514067,102.97,102.93,3.19135249]
[1770128352722,12.94355067,102.97,102.94,3.19135249]
[1770128355349,20.71468267,102.97,102.94,3.19135249]
[1770128355849,20.71468267,102.97,102.92,3.19135249]
[1770128355850,11.00308505,102.96,102.92,3.19135249]
[1770128356226,20.71651726,102.96,102.92,12.90750238]
[1770128357555,12.94538526,102.96,102.93,3.19135249]
[1770128359628,20.71651726,102.96,102.93,3.19135249]
[1770128359830,12.94538526,102.96,102.93,3.19135249]
[1770128361042,9.71202427,102.97,102.94,3.27636857]
[1770128361243,9.71202427,102.97,102.87,7.771132]
[1770128361244,9.71628449,102.92,102.87,7.771132]
[1770128361452,5.05446914,102.92,102.89,11.04750057]
[1770128361660,2.88880432,102.92,102.91,11.04750057]
[1770128361853,2.88880432,102.92,102.91,3.27636857]
[1770128362056,9.71345313,102.95,102.92,3.27636857]
[1770128363061,9.71345313,102.95,102.92,6.18056165]
[1770128363261,9.71345313,102.95,102.92,3.27636857]
[1770128366572,3.17935459,102.94,102.89,3.27636857]
[1770128366755,6.08354767,102.93,102.9,3.27636857]
[1770128368146,15.79969265,102.93,102.89,12.99471554]
[1770128368455,2.90419308,102.91,102.88,3.27636857]
[1770128368968,6.08354767,102.91,102.88,3.27636857]
[1770128369145,6.08354767,102.9,102.86,39.97785817]
[1770128370068,15.80198096,102.9,102.86,39.97785817]
[1770128371068,30.37588609,102.92,102.87,3.27636857]
[1770128371245,15.80036493,102.92,102.88,3.27636857]
[1770128371446,24.28788793,102.94,102.9,3.27636857]
[1770128371665,2.90419308,102.94,102.9,3.27636857]
[1770128371971,15.79749339,102.95,102.91,3.27636857]
[1770128372269,2.90419308,102.95,102.92,3.27636857]
[1770128372449,15.79721641,102.95,102.9,12.99421184]
[1770128372654,2.90419308,102.94,102.91,3.27636857]
[1770128373049,12.61786182,102.95,102.91,3.27636857]
[1770128373253,15.79721641,102.95,102.91,3.27636857]
[1770128373571,12.61786182,102.95,102.91,3.27636857]
[1770128373867,12.61786182,102.95,102.9,9.71784327]
[1770128373868,6.08354767,102.94,102.9,12.99421184]
[1770128374446,15.79721641,102.95,102.91,12.99359721]
[1770128374746,2.90419308,102.94,102.91,3.27636857]
[1770128374945,15.79721641,102.95,102.91,3.27636857]
[1770128375152,2.90419308,102.94,102.91,3.27636857]
[1770128376068,2.90419308,102.93,102.91,3.27636857]
[1770128376865,6.08354767,102.94,102.91,3.27636857]
[1770128377188,15.79834892,102.94,102.91,3.27636857]
[1770128377677,9.71480125,102.94,102.91,3.27636857]
[1770128377852,9.71389806,102.95,102.92,3.27636857]
[1770128378052,12.61809114,102.95,102.92,3.27636857]
[1770128379872,3.17935459,102.94,102.91,3.27636857]
[1770128380081,6.08354767,102.93,102.9,3.27636857]
[1770128380250,2.90419308,102.93,102.9,3.27636857]
[1770128381675,9.7153497,102.93,102.9,12.994428]
[1770128382175,9.7153497,102.93,102.9,3.27636857]
[1770128382659,15.79826336,102.94,102.9,3.27636857]
[1770128384250,2.90419308,102.93,102.9,3.27636857]
[1770128384560,15.79826336,102.94,102.91,3.27636857]
[1770128387979,9.71395426,102.95,102.92,3.27636857]
[1770128388179,15.79656687,102.96,102.92,3.27636857]
[1770128388371,40.07787411,102.96,102.92,3.27636857]
[1770128388692,40.07787411,102.96,102.92,12.99252541]
[1770128388893,3.17935459,102.92,102.85,3.27636857]
[1770128389061,6.08354767,102.92,102.88,3.27636857]
[1770128389785,2.90419308,102.92,102.88,3.27636857]
[1770128389999,6.08354767,102.93,102.89,3.27636857]
[1770128390187,6.08354767,102.94,102.89,3.27636857]
[1770128390490,15.92894633,102.93,102.9,3.30625688]
[1770128390696,40.21729763,102.93,102.9,3.30625688]
[1770128391394,34.00369182,102.93,102.9,3.30625688]
[1770128391567,36.9078849,102.93,102.9,3.30625688]
[1770128392376,41.78745453,102.93,102.9,3.30625688]
[1770128394089,34.00369182,102.93,102.9,3.30625688]
[1770128395172,27.59595258,102.94,102.9,3.30625688]
[1770128395380,20.66139777,102.95,102.91,3.28499275]
[1770128395696,44.9450306,102.95,102.91,3.28499275]
[1770128396490,3.1636283,102.94,102.91,3.28499275]
[1770128396792,12.87884938,102.94,102.91,3.28499275]
[1770128400479,44.94607396,102.94,102.91,3.28499275]
[1770128400887,12.87884938,102.94,102.91,3.28499275]
[1770128401897,9.71522108,102.94,102.92,3.28499275]
[1770128402102,9.71156647,102.97,102.94,3.28499275]
[1770128402403,12.8746677,102.98,102.94,7.78123275]
[1770128402792,9.7110394,102.98,102.95,7.78123275]
[1770128402978,9.71014855,102.99,102.95,7.78123275]
[1770128403184,12.87144177,103.01,102.97,7.78123275]
[1770128404184,12.87144177,103.01,102.97,20.7777341]
[1770128404498,12.87144177,103.01,102.92,44.50990677]
[1770128404499,10.94486105,102.99,102.96,3.28499275]
[1770128405008,3.1636283,102.98,102.95,3.28499275]
[1770128405201,10.94486105,102.98,102.95,3.28499275]
[1770128406304,20.65621311,102.98,102.95,3.28499275]
[1770128406509,10.94486105,102.97,102.94,30.28499275]
[1770128406713,10.94486105,102.97,102.94,27.0]
[1770128407093,3.1636283,102.96,102.94,27.0]
[1770128407299,7.78123275,102.95,102.92,3.28499275]
[1770128407515,3.1636283,102.96,102.93,3.28499275]
[1770128407784,10.94486105,102.97,102.93,3.28499275]
[1770128408510,10.94486105,102.95,102.92,3.28499275]
[1770128408703,3.1636283,102.95,102.92,3.28499275]
[1770128409208,10.94486105,102.96,102.92,13.00105155]
[1770128409709,10.94486105,102.96,102.93,3.28499275]
[1770128411194,20.65804825,102.96,102.93,3.28499275]
[1770128411391,20.65804825,102.96,102.92,9.7160588]
[1770128411609,3.1636283,102.95,102.92,13.00105155]
[1770128412207,10.94486105,102.95,102.92,3.28499275]
[1770128412413,6.06839667,102.95,102.92,3.28499275]
[1770128412907,6.06839667,102.93,102.9,30.26499275]
[1770128413106,6.06839667,102.93,102.9,26.98]
[1770128413107,3.1636283,102.92,102.9,26.98]
[1770128413289,6.06839667,102.92,102.9,26.98]
[1770128413607,3.1636283,102.92,102.9,26.98]
[1770128414189,6.06839667,102.92,102.9,26.98]
[1770128414519,6.06839667,102.92,102.89,3.28499275]
[1770128414694,6.06839667,102.91,102.88,3.28499275]
[1770128414896,6.06839667,102.91,102.88,13.00504654]
[1770128415809,15.7852285,102.92,102.89,3.28499275]
[1770128416819,24.2883513,102.93,102.89,3.28499275]
[1770128416820,12.87937004,102.93,102.89,3.28499275]
[1770128416997,15.78413841,102.93,102.89,3.28499275]
[1770128417191,15.78321384,102.94,102.9,3.28499275]
[1770128417685,12.87844547,102.94,102.91,3.28499275]
[1770128417911,15.78321384,102.94,102.91,3.28499275]
[1770128419300,12.87844547,102.94,102.91,3.28499275]
[1770128419492,6.06839667,102.97,102.94,3.28499275]
[1770128419692,6.06839667,102.96,102.93,3.28499275]
[1770128420203,3.1636283,102.96,102.93,13.00030589]
[1770128421121,6.06839667,102.96,102.93,3.28499275]
[1770128421711,6.06839667,102.96,102.93,13.00026926]
[1770128422535,3.33290493,102.97,102.94,3.21131254]
[1770128424008,24.27436177,102.99,102.95,3.21131254]
[1770128424009,11.11134128,102.99,102.95,3.21131254]
[1770128424211,7.77843635,102.99,102.95,3.21131254]
[1770128424517,3.33290493,103.0,102.97,3.21131254]
[1770128424698,11.11134128,103.0,102.97,3.21131254]
[1770128424902,20.82029581,103.0,102.97,3.21131254]
[1770128427414,11.11134128,103.0,102.97,12.92251122]
[1770128427621,20.81960544,103.01,102.98,3.21131254]
[1770128428134,20.81960544,103.01,102.97,20.70094757]
[1770128428911,3.33290493,103.01,102.98,3.21131254]
[1770128429922,3.33290493,103.0,102.97,3.21131254]
[1770128430105,3.33290493,103.0,102.96,10.98974889]
[1770128430309,11.11134128,103.0,102.96,20.70172308]
[1770128430628,3.33290493,102.99,102.96,12.92345436]
[1770128431502,20.8207401,103.0,102.96,12.92345436]
[1770128432599,13.04230375,103.0,102.97,3.21131254]
[1770128433100,32.04792474,103.01,102.98,3.21131254]
[1770128433101,20.81958911,103.01,102.98,3.21131254]
[1770128434425,11.11134128,103.01,102.98,3.21131254]
[1770128435322,11.11134128,103.01,102.98,12.92185625]
[1770128435521,20.81929636,103.01,102.98,3.21131254]
[1770128439232,3.33290493,102.99,102.96,3.21131254]
[1770128439417,11.11134128,103.0,102.96,3.21131254]
[1770128439730,11.11134128,103.0,102.97,3.21131254]
[1770128440108,11.11134128,103.0,102.97,12.92278806]
[1770128440729,20.81929636,103.01,102.98,3.21131254]
[1770128442237,3.33290493,103.0,102.97,12.92278806]
[1770128442738,11.11134128,103.0,102.97,3.21131254]
[1770128444232,20.8208594,103.0,102.97,3.21131254]
[1770128444441,15.94466247,103.0,102.97,3.21131254]
[1770128446640,15.94315985,103.01,102.98,3.21131254]
[1770128452430,15.94315985,103.01,102.98,12.92172704]
[1770128452623,15.94315985,103.01,102.98,3.21131254]
[1770128452824,15.67000474,103.02,102.99,3.19972398]
[1770128453532,12.76776532,103.02,102.99,3.19972398]
[1770128453848,15.67000474,103.02,102.99,3.19972398]
[1770128454025,2.90223942,103.01,102.99,3.19972398]
[1770128454227,12.61024415,103.01,102.99,3.19972398]
[1770128454426,15.67079797,103.01,102.99,3.19972398]
[1770128454849,12.76855855,103.01,102.99,3.19972398]
[1770128455650,3.06055382,103.01,102.99,3.19972398]
[1770128460456,3.06055382,103.02,102.99,12.90929897]
[1770128460954,15.66794213,103.03,103.0,3.19972398]
[1770128461640,12.76690262,103.03,103.0,3.19972398]
[1770128461945,12.76690262,103.03,102.99,12.6106145]
[1770128461946,12.76506515,103.05,103.02,3.19972398]
[1770128462355,15.86512431,103.06,103.03,3.19972398]
[1770128462652,3.06055382,103.04,103.01,30.17972398]
[1770128462856,2.90103951,103.03,103.01,30.17972398]
[1770128463053,5.96159333,103.03,103.01,26.98]
[1770128463245,5.96159333,103.04,103.01,30.17972398]
[1770128463634,3.06055382,103.04,103.01,30.17972398]
[1770128463865,5.96159333,103.04,103.01,30.17972398]
[1770128464745,5.96159333,103.05,103.02,3.19972398]
[1770128465353,3.06055382,103.05,103.02,3.19972398]
[1770128465554,30.41953648,103.06,103.02,3.19972398]
[1770128466262,40.12313102,103.06,103.02,3.19972398]
[1770128466649,12.96414836,103.06,103.03,3.19972398]
[1770128467059,3.06055382,103.03,102.98,3.19972398]
[1770128467258,5.96159333,103.01,102.98,3.19972398]
[1770128468965,2.90103951,103.01,102.99,3.19972398]
[1770128469348,3.06055382,103.0,102.97,3.19972398]
[1770128469547,2.90103951,103.0,102.97,3.19972398]
[1770128470260,15.66954705,103.01,102.98,3.19972398]
[1770128471654,15.66870192,103.02,102.99,3.19972398]
[1770128472659,0.2,103.06,103.02,3.19972398]
[1770128472856,0.2,103.06,103.03,6.10076349]
[1770128473064,0.2,103.06,103.04,3.19972398]
[1770128473571,0.2,103.06,103.05,6.10076349]
[1770128473745,0.2,103.07,103.04,9.7048547]
[1770128473746,6.06607285,103.08,103.07,3.19972398]
[1770128474756,6.06607285,103.08,103.06,3.19972398]
[1770128475649,6.06607285,103.08,103.05,6.10076349]
[1770128475864,3.06055382,103.07,103.04,3.19972398]
[1770128476245,21.72895847,103.08,103.04,15.80499761]
[1770128476444,18.82791896,103.08,103.04,15.80499761]
[1770128476669,18.82791896,103.08,103.05,3.19972398]
[1770128477868,3.06055382,103.06,103.03,15.80628606]
[1770128478059,3.06055382,103.06,103.03,3.19972398]
[1770128478575,3.06055382,103.05,103.02,3.19972398]
[1770128479572,3.06055382,103.05,103.02,15.80757015]
[1770128480452,12.76475767,103.05,103.02,6.10076349]
[1770128480652,12.76475767,103.05,103.02,3.19972398]
[1770128481163,3.07935595,103.04,103.01,12.8795268]
[1770128481368,3.07935595,103.04,103.01,15.78056631]
[1770128482262,12.7835598,103.05,103.02,3.17212856]
[1770128482470,3.07935595,103.04,103.01,6.07316807]
[1770128482775,3.07935595,103.03,103.0,3.17212856]
[1770128483476,3.07935595,103.03,103.0,12.88075098]
[1770128483673,3.07935595,103.03,102.99,2.90103951]
[1770128483674,3.07935595,103.02,102.99,3.17212856]
[1770128483975,3.07935595,103.02,102.98,12.6111304]
[1770128483976,5.98039546,103.02,102.98,6.07316807]
[1770128484765,15.68791399,103.02,102.98,15.78374919]
[1770128485079,15.68791399,103.02,102.98,12.88270968]
[1770128485464,5.98039546,103.01,102.98,3.17212856]
[1770128486177,12.78687448,103.02,102.99,3.17212856]
[1770128486354,15.68791399,103.02,102.99,3.17212856]
[1770128486674,3.07935595,103.01,102.98,3.17212856]
[1770128486981,15.68791399,103.02,102.98,15.78376045]
[1770128487180,15.68791399,103.02,102.98,12.88272094]
[1770128487479,5.98039546,103.01,102.98,3.17212856]
[1770128487857,5.98039546,103.01,102.96,51.2405485]
[1770128487858,2.90103951,103.0,102.96,33.03316807]
[1770128488056,5.98039546,102.99,102.96,3.17212856]
[1770128488262,3.07935595,102.98,102.95,12.88516736]
[1770128489778,3.07935595,102.97,102.94,9.71390652]
[1770128489977,3.07935595,102.97,102.94,12.88603508]
[1770128490372,12.79010721,102.98,102.94,12.88610252]
[1770128490680,3.07935595,102.97,102.94,12.88610252]
[1770128491175,12.78947174,102.99,102.95,12.88539093]
[1770128491363,15.69051125,102.99,102.95,12.88539093]
[1770128491766,15.69051125,102.99,102.95,15.78643044]
[1770128492175,3.07935595,103.0,102.97,3.17212856]
[1770128492380,15.68914398,103.0,102.97,3.17212856]
[1770128492565,15.68914398,103.0,102.96,6.07316807]
[1770128493179,12.78810447,103.0,102.96,6.07316807]
[1770128493378,15.68914398,103.0,102.96,15.78526453]
[1770128494482,12.78810447,103.0,102.97,3.17212856]
[1770128494680,3.07935595,103.0,102.97,12.88325243]
[1770128496670,5.98039546,103.0,102.97,12.88325243]
[1770128498089,15.6896246,103.0,102.97,3.17212856]
[1770128498768,15.68863604,103.01,102.97,12.88333028]
[1770128499583,3.07935595,103.01,102.98,3.17212856]
[1770128499977,5.98039546,103.01,102.98,3.17212856]
[1770128501290,5.98039546,103.01,102.98,12.88255281]
[1770128501868,15.68822613,103.01,102.98,12.88255281]
[1770128502184,15.68822613,103.01,102.98,3.17212856]
[1770128507486,12.78718662,103.01,102.98,3.17212856]
[1770128507790,15.68822613,103.01,102.98,3.17212856]
[1770128509474,12.60887018,103.01,102.98,3.17212856]
[1770128510082,12.78718662,103.01,102.98,3.17212856]
[1770128510892,5.82215422,103.04,103.01,2.97025942]
[1770128511094,9.70402717,103.05,103.01,2.97025942]
[1770128511295,2.92111471,103.05,103.02,2.97025942]
[1770128511479,5.82215422,103.05,103.02,2.97025942]
[1770128511680,2.92111471,103.05,103.02,12.67704412]
[1770128511995,15.52609163,103.06,103.03,2.97025942]
[1770128512199,5.82215422,103.05,103.02,12.67704412]
[1770128513777,2.92111471,103.05,103.02,12.67704412]
[1770128515881,3.18469704,103.04,103.01,9.70724251]
[1770128516083,3.18469704,103.04,103.01,12.60843948]
[1770128517803,6.08573655,103.04,103.01,12.60843948]
[1770128517981,3.18469704,103.02,102.99,15.51155425]